bitfinex-derivatives/quotes_BTCF0:USTF0_20250528
["timestamp","ask_amount","ask_price","bid_price","bid_amount"]
[1748402219597,0.8945133,108810.0,108800.0,0.38862496]
[1748402220183,0.8945133,108810.0,108800.0,0.57235516]
[1748402220494,0.8945133,108810.0,108800.0,0.55162182]
[1748402220495,0.90359184,108810.0,108800.0,0.55162182]
[1748402221287,1.02519256,108810.0,108800.0,0.29597887]
[1748402221492,1.05759256,108810.0,108800.0,0.3776864]
[1748402221817,0.1837303,108800.0,108790.0,0.06898671]
[1748402222105,0.1837303,108800.0,108790.0,0.01284537]
[1748402222106,1.15665102,108800.0,108790.0,0.01284537]
[1748402222310,1.64059102,108800.0,108790.0,1e-07]
[1748402222506,0.1837472,108790.0,108780.0,0.03415775]
[1748402222694,1.10944792,108790.0,108780.0,0.03415775]
[1748402222891,0.72944792,108790.0,108780.0,0.03415775]
[1748402223086,1.03944792,108790.0,108780.0,0.03415775]
[1748402223294,1.03944792,108790.0,108780.0,0.03427775]
[1748402224393,0.72944792,108790.0,108780.0,0.03427775]
[1748402224790,0.6078472,108790.0,108780.0,0.03427775]
[1748402224989,0.6078472,108790.0,108780.0,0.03727775]
[1748402225179,0.6078472,108790.0,108780.0,0.04027775]
[1748402225384,0.6078472,108790.0,108780.0,0.07277775]
[1748402225592,0.6078472,108790.0,108780.0,0.28904155]
[1748402225805,0.5769472,108790.0,108780.0,0.43064227]
[1748402225992,0.5770672,108790.0,108780.0,0.24687847]
[1748402226391,0.5770672,108790.0,108770.0,0.80502671]
[1748402226392,0.1837638,108780.0,108770.0,0.80502671]
[1748402226585,0.5445638,108780.0,108770.0,1.14502671]
[1748402227285,0.5771638,108780.0,108770.0,0.93153599]
[1748402227487,0.5771638,108780.0,108770.0,0.94519887]
[1748402227694,0.6099638,108780.0,108770.0,0.94919887]
[1748402227885,0.6099638,108780.0,108770.0,0.94931887]
[1748402228197,0.6099638,108780.0,108770.0,0.95331887]
[1748402229882,0.6099638,108780.0,108770.0,1.05081887]
[1748402231794,0.6099638,108780.0,108770.0,0.86703817]
[1748402232099,0.61006491,108780.0,108770.0,1.05081897]
[1748402232396,0.6119638,108780.0,108770.0,0.86303817]
[1748402232598,0.6452638,108780.0,108770.0,1.04681897]
[1748402233499,0.6462638,108780.0,108770.0,1.04281897]
[1748402234395,0.6462638,108780.0,108770.0,0.85903817]
[1748402235893,0.6462638,108780.0,108770.0,1.04281907]
[1748402237285,0.6129638,108780.0,108770.0,1.04281907]
[1748402237691,0.6129638,108780.0,108770.0,1.16441979]
[1748402239089,0.6129638,108780.0,108770.0,1.20570566]
[1748402240399,0.61744589,108780.0,108770.0,1.20570566]
[1748402241503,0.6175393,108780.0,108770.0,1.20570566]
[1748402241803,0.61744589,108780.0,108770.0,1.20570566]
[1748402244403,0.61751875,108780.0,108770.0,1.20570566]
[1748402244607,0.61744589,108780.0,108770.0,1.20570566]
[1748402245307,0.61744589,108780.0,108770.0,1.2057144]
[1748402248697,0.61752236,108780.0,108770.0,1.2057144]
[1748402248896,0.617547,108780.0,108770.0,1.2057144]
[1748402249102,0.650747,108780.0,108770.0,1.2057144]
[1748402249308,0.65064589,108780.0,108770.0,1.16441979]
[1748402249500,0.6461638,108780.0,108770.0,1.16441979]
[1748402249695,0.6461638,108780.0,108770.0,1.21945574]
[1748402250097,0.64624865,108780.0,108770.0,1.16441979]
[1748402250304,0.64626491,108780.0,108770.0,1.04281907]
[1748402250611,0.65064589,108780.0,108770.0,1.04277907]
[1748402250814,0.65064589,108780.0,108770.0,1.09781502]
[1748402251711,0.65064589,108780.0,108770.0,0.67657502]
[1748402252015,0.65064589,108780.0,108770.0,1.09781502]
[1748402253013,0.65164589,108780.0,108770.0,1.09781502]
[1748402253819,0.65164589,108780.0,108770.0,1.09769502]
[1748402254025,0.77331867,108780.0,108770.0,1.2193678]
[1748402254206,0.77571867,108780.0,108770.0,1.2202078]
[1748402258913,0.257747,108780.0,108770.0,1.2193678]
[1748402259123,0.227347,108780.0,108770.0,1.2202078]
[1748402259416,0.227467,108780.0,108770.0,1.2202078]
[1748402260016,0.258267,108780.0,108770.0,1.3017083]
[1748402260321,0.256267,108780.0,108770.0,1.3017083]
[1748402260621,0.225467,108780.0,108770.0,1.3017083]
[1748402260849,0.0089832,108780.0,108770.0,1.53050359]
[1748402261031,0.0091032,108780.0,108770.0,2.03838684]
[1748402261233,0.0091032,108780.0,108770.0,1.96951956]
[1748402261531,0.0089832,108780.0,108770.0,2.06582993]
[1748402261845,0.0091032,108780.0,108770.0,1.98093505]
[1748402262028,0.0091032,108780.0,108770.0,2.07733232]
[1748402262221,0.0091032,108780.0,108770.0,1.98418889]
[1748402262725,0.0091032,108780.0,108770.0,1.88779162]
[1748402263021,0.0111032,108780.0,108770.0,1.88779162]
[1748402263224,0.0091032,108780.0,108770.0,1.88879162]
[1748402263415,0.0091032,108780.0,108770.0,1.98518889]
[1748402263624,0.03083817,108800.0,108790.0,0.1837473]
[1748402263818,0.21456857,108800.0,108790.0,1.60420302]
[1748402264015,0.03083817,108800.0,108790.0,1.57805211]
[1748402264211,0.03323817,108800.0,108790.0,1.57805211]
[1748402264517,0.03323817,108800.0,108790.0,1.57901211]
[1748402265118,0.03323817,108800.0,108790.0,1.67709211]
[1748402265317,0.00265817,108800.0,108790.0,1.67709211]
[1748402266613,0.18638867,108800.0,108790.0,1.74693345]
[1748402266811,0.00265817,108800.0,108790.0,1.74693345]
[1748402269622,0.03345817,108800.0,108790.0,1.69182329]
[1748402269921,0.03794026,108800.0,108790.0,1.69182329]
[1748402272420,0.22167076,108800.0,108790.0,1.69182329]
[1748402274424,0.03794026,108800.0,108790.0,1.69182329]
[1748402275119,0.03794026,108800.0,108790.0,1.69170329]
[1748402275721,0.03794026,108800.0,108790.0,1.74681345]
[1748402275925,0.00702026,108800.0,108790.0,1.74681345]
[1748402276132,0.00714026,108800.0,108790.0,1.83872945]
[1748402276426,0.00702026,108800.0,108790.0,1.76888811]
[1748402276624,0.00714026,108800.0,108790.0,1.76888811]
[1748402277223,0.00714026,108800.0,108790.0,1.83864601]
[1748402277418,0.03984026,108800.0,108790.0,1.83864601]
[1748402278525,0.03984026,108800.0,108790.0,1.74673001]
[1748402280833,0.0327,108810.0,108790.0,1.53003065]
[1748402281125,0.0327,108810.0,108800.0,0.81539895]
[1748402281316,0.0327,108810.0,108800.0,1.19539895]
[1748402281520,0.03282,108810.0,108800.0,1.19539895]
[1748402281729,0.2165336,108810.0,108800.0,1.0738043]
[1748402281948,0.73152825,108810.0,108800.0,0.4349738]
[1748402282158,0.1837305,108800.0,108790.0,0.12581775]
[1748402282342,0.73042515,108800.0,108790.0,0.31085861]
[1748402282643,0.73042515,108800.0,108790.0,0.67338723]
[1748402282839,0.73042515,108800.0,108790.0,0.67350723]
[1748402283034,0.73490724,108800.0,108790.0,0.67350723]
[1748402283927,0.73590724,108800.0,108790.0,0.67350723]
[1748402284231,0.73790724,108800.0,108790.0,0.67350723]
[1748402284534,0.73790724,108800.0,108790.0,0.67338723]
[1748402284734,0.73890724,108800.0,108790.0,0.67350723]
[1748402285623,0.73990724,108800.0,108790.0,0.67350723]
[1748402285826,1.09990724,108800.0,108790.0,0.67350723]
[1748402287819,1.09990724,108800.0,108790.0,0.7147478]
[1748402289334,0.73990724,108800.0,108790.0,0.7147478]
[1748402289928,1.06990724,108800.0,108790.0,0.7147478]
[1748402290130,0.73990724,108800.0,108790.0,0.7147478]
[1748402290432,1.08990724,108800.0,108790.0,0.7147478]
[1748402290637,1.08990724,108800.0,108790.0,0.78450824]
[1748402291239,1.08990724,108800.0,108790.0,0.74450824]
[1748402292531,1.08990724,108800.0,108790.0,0.6747478]
[1748402293127,1.08990724,108800.0,108790.0,0.0699604]
[1748402293332,1.08990724,108800.0,108790.0,0.09849561]
[1748402293539,1.08990724,108800.0,108790.0,0.09861561]
[1748402293833,1.08990724,108800.0,108790.0,0.00109817]
[1748402294039,1.08990724,108800.0,108790.0,0.00121817]
[1748402295945,1.08990724,108800.0,108790.0,0.07111395]
[1748402296367,0.96831259,108800.0,108790.0,0.07111395]
[1748402296644,1.08990724,108800.0,108790.0,0.00121817]
[1748402297148,0.73990724,108800.0,108790.0,0.18496557]
[1748402297356,0.61831259,108800.0,108790.0,0.19496557]
[1748402297644,0.61831259,108800.0,108790.0,0.22246723]
[1748402297845,0.64941259,108800.0,108790.0,0.25436723]
[1748402298345,0.77100724,108800.0,108790.0,0.25436723]
[1748402298643,0.77100724,108800.0,108790.0,0.22246723]
[1748402299232,0.77100724,108800.0,108790.0,0.25296723]
[1748402299635,0.64941259,108800.0,108790.0,0.25296723]
[1748402300836,0.77100724,108800.0,108790.0,0.32281171]
[1748402301748,0.64941259,108800.0,108790.0,0.32281171]
[1748402304945,0.64941259,108800.0,108790.0,0.50900636]
[1748402305140,0.64941259,108800.0,108790.0,0.55024693]
[1748402305551,0.64941259,108800.0,108790.0,0.48040245]
[1748402305747,0.64941259,108800.0,108790.0,0.55026383]
[1748402306553,0.64941259,108800.0,108790.0,0.48040245]
[1748402306746,0.64941259,108800.0,108790.0,0.3588078]
[1748402307541,0.64941259,108800.0,108790.0,0.33130614]
[1748402308353,0.64941259,108800.0,108790.0,0.08295874]
[1748402308646,0.64941259,108800.0,108790.0,0.7152909]
[1748402308853,0.64941259,108800.0,108790.0,0.7151709]
[1748402309053,0.64941259,108800.0,108790.0,0.5315435]
[1748402309442,0.64941259,108800.0,108790.0,0.7152909]
[1748402309745,0.64941259,108800.0,108790.0,0.68774614]
[1748402311737,0.64941259,108800.0,108790.0,0.75761602]
[1748402311941,0.64941259,108800.0,108790.0,0.78991602]
[1748402312749,0.77100724,108800.0,108790.0,0.82311602]
[1748402314038,0.77100724,108800.0,108790.0,0.75324614]
[1748402314349,0.64941259,108800.0,108790.0,0.75324614]
[1748402317976,0.61831259,108800.0,108790.0,0.87484079]
[1748402318160,0.61831259,108800.0,108790.0,1.13360022]
[1748402318341,0.61831259,108800.0,108790.0,1.18857402]
[1748402318740,0.61831259,108800.0,108790.0,0.89857402]
[1748402319856,0.61831259,108800.0,108790.0,0.84360022]
[1748402320057,0.61831259,108800.0,108790.0,0.94275538]
[1748402320245,0.61831259,108800.0,108790.0,0.88778158]
[1748402321770,0.61831259,108800.0,108790.0,0.82112073]
[1748402321949,0.65091259,108800.0,108790.0,0.82112073]
[1748402323265,0.77250724,108800.0,108790.0,0.82111384]
[1748402323454,0.77250724,108800.0,108790.0,0.30411384]
[1748402323651,0.77250724,108800.0,108790.0,0.54136644]
[1748402323847,0.77250724,108800.0,108790.0,0.70104004]
[1748402324254,0.77250724,108800.0,108790.0,0.73304004]
[1748402324862,0.65091259,108800.0,108790.0,0.73304004]
[1748402325468,0.65091259,108800.0,108790.0,0.88890932]
[1748402326061,0.65091259,108800.0,108790.0,0.95230932]
[1748402327272,0.65091259,108800.0,108790.0,0.85683578]
[1748402327454,0.65091259,108800.0,108790.0,0.9523415]
[1748402328565,0.65091259,108800.0,108790.0,0.8889415]
[1748402328865,0.77250724,108800.0,108790.0,0.6541341]
[1748402329063,0.77250724,108800.0,108790.0,0.6542541]
[1748402329269,0.77250724,108800.0,108790.0,0.8380015]
[1748402329862,0.65091259,108800.0,108790.0,0.8708015]
[1748402330067,0.65091259,108800.0,108790.0,0.9341015]
[1748402331552,0.65091259,108800.0,108790.0,1.05571395]
[1748402331754,0.65091259,108800.0,108790.0,1.42571395]
[1748402331963,0.61831259,108800.0,108790.0,1.42571395]
[1748402333158,0.61831259,108800.0,108790.0,0.94279645]
[1748402333761,0.61831259,108800.0,108790.0,1.07571789]
[1748402333961,0.61831259,108800.0,108790.0,0.94279645]
[1748402334157,0.61831259,108800.0,108790.0,1.26279645]
[1748402335867,0.61531259,108800.0,108790.0,1.26279645]
[1748402336063,0.61731259,108800.0,108790.0,1.26279645]
[1748402336263,0.61631259,108800.0,108790.0,1.26279645]
[1748402339262,0.25551259,108800.0,108790.0,1.26279645]
[1748402340176,0.25551259,108800.0,108790.0,1.2627823]
[1748402340371,0.22291259,108800.0,108790.0,1.2627823]
[1748402341658,0.22291259,108800.0,108790.0,1.10325676]
[1748402341970,0.22291259,108800.0,108790.0,0.78575033]
[1748402342267,0.25491259,108800.0,108790.0,1.20671033]
[1748402342657,0.28711259,108800.0,108790.0,1.20671033]
[1748402343555,0.28711259,108800.0,108790.0,1.33989964]
[1748402344377,0.25491259,108800.0,108790.0,1.34014653]
[1748402345167,0.25491259,108800.0,108790.0,1.70094653]
[1748402346070,0.25491259,108800.0,108790.0,1.34014653]
[1748402346962,0.25491259,108800.0,108790.0,1.70094653]
[1748402347169,0.25491259,108800.0,108790.0,1.34014653]
[1748402348772,0.25491259,108800.0,108790.0,1.25854579]
[1748402348959,0.25491259,108800.0,108790.0,1.20695595]
[1748402349870,0.25491259,108800.0,108790.0,1.20691595]
[1748402350276,0.25491259,108800.0,108790.0,1.56771595]
[1748402350468,0.25491259,108800.0,108790.0,1.64937711]
[1748402350864,0.25491259,108800.0,108790.0,1.56771795]
[1748402352267,0.07118209,108800.0,108790.0,1.56771795]
[1748402352476,0.25491279,108800.0,108790.0,1.56771795]
[1748402353971,0.25491279,108800.0,108790.0,1.6882033]
[1748402354478,0.28801279,108800.0,108790.0,1.76987651]
[1748402354675,0.28801279,108800.0,108790.0,1.6882033]
[1748402355482,0.28801279,108800.0,108790.0,1.76988291]
[1748402355877,0.28801279,108800.0,108790.0,1.76990698]
[1748402356174,0.25491279,108800.0,108790.0,1.75622223]
[1748402356900,0.07118209,108800.0,108790.0,1.82263135]
[1748402357183,0.07118209,108800.0,108790.0,1.8915257]
[1748402357872,0.07118209,108800.0,108790.0,1.76988497]
[1748402358072,0.06918209,108800.0,108790.0,1.76988497]
[1748402358272,0.06818209,108800.0,108790.0,1.76988497]
[1748402358886,0.06818209,108800.0,108790.0,1.68820536]
[1748402359181,0.06818209,108800.0,108790.0,1.78134879]
[1748402359576,0.06818209,108800.0,108790.0,1.68820536]
[1748402359978,0.03618209,108800.0,108790.0,1.76989301]
[1748402360374,0.03618209,108800.0,108790.0,1.56772001]
[1748402360578,0.03618209,108800.0,108790.0,1.63661436]
[1748402360780,0.03618209,108800.0,108790.0,1.76989301]
[1748402363986,0.03618209,108800.0,108790.0,1.68820536]
[1748402364194,0.0314,108810.0,108800.0,0.1837315]
[1748402364391,0.0309,108810.0,108800.0,1.61911509]
[1748402364692,0.03102,108810.0,108800.0,1.61911509]
[1748402364983,0.0309,108810.0,108800.0,1.61911509]
[1748402365184,0.03102,108810.0,108800.0,1.61911509]
[1748402365789,0.03102,108810.0,108800.0,1.61904934]
[1748402366185,0.03102,108810.0,108800.0,1.6074861]
[1748402366894,0.03102,108810.0,108800.0,1.61904934]
[1748402367193,0.03102,108810.0,108800.0,1.40546534]
[1748402368100,0.03102,108810.0,108800.0,1.40543461]
[1748402368584,0.03102,108810.0,108800.0,1.36106901]
[1748402369182,0.03102,108810.0,108800.0,1.40543475]
[1748402370293,0.03102,108810.0,108800.0,1.36106901]
[1748402370493,0.03102,108810.0,108800.0,1.40542625]
[1748402371289,0.03102,108810.0,108800.0,1.40541915]
[1748402373493,0.06342,108810.0,108800.0,1.40541915]
[1748402374191,0.06790209,108810.0,108800.0,1.40541915]
[1748402375381,0.06790209,108810.0,108800.0,1.70050067]
[1748402375382,0.03550209,108810.0,108800.0,1.70050067]
[1748402375583,0.03567529,108820.0,108810.0,0.1837146]
[1748402375788,0.0323,108830.0,108820.0,0.1836977]
[1748402375984,0.0323,108830.0,108820.0,1.80659902]
[1748402376288,0.0323,108830.0,108820.0,1.72502221]
[1748402376486,0.0323,108830.0,108820.0,1.73869438]
[1748402376686,0.03242,108830.0,108820.0,1.73869438]
[1748402376998,0.06233817,108840.0,108830.0,0.1836809]
[1748402377201,0.09463817,108840.0,108830.0,1.15040101]
[1748402377798,0.06383817,108840.0,108830.0,1.32199772]
[1748402377985,0.03243817,108840.0,108830.0,1.26702446]
[1748402378187,0.03255817,108840.0,108830.0,1.26702446]
[1748402378381,0.00025817,108840.0,108830.0,1.33591881]
[1748402378597,0.00013817,108840.0,108830.0,1.33591881]
[1748402378802,0.00025817,108840.0,108830.0,1.42780281]
[1748402378989,0.00013817,108840.0,108830.0,1.42780281]
[1748402379293,0.00025817,108840.0,108830.0,1.42780281]
[1748402379500,0.00013817,108840.0,108830.0,1.50937962]
[1748402379797,0.00025817,108840.0,108830.0,1.42780281]
[1748402380103,0.032,108850.0,108840.0,0.183664]
[1748402380302,0.032,108850.0,108840.0,1.76336756]
[1748402380492,0.032,108850.0,108840.0,1.81822076]
[1748402381095,0.032,108850.0,108840.0,1.84340378]
[1748402381300,0.032,108850.0,108840.0,1.84540378]
[1748402382095,0.032,108850.0,108840.0,1.77587062]
[1748402382300,0.032,108850.0,108840.0,1.77687062]
[1748402383200,0.0638,108850.0,108840.0,1.478824]
[1748402383512,0.0638,108850.0,108840.0,1.08186071]
[1748402383809,0.36904401,108850.0,108840.0,0.58629114]
[1748402384103,0.36904401,108850.0,108840.0,0.63190588]
[1748402384295,0.2474473,108850.0,108840.0,0.63190588]
[1748402384685,0.2474473,108850.0,108840.0,0.48643841]
[1748402385089,0.2474473,108850.0,108840.0,0.31190588]
[1748402385488,0.2474473,108850.0,108840.0,0.31090588]
[1748402385691,0.2494473,108850.0,108840.0,0.31090588]
[1748402385891,0.2504473,108850.0,108840.0,0.30890588]
[1748402386301,0.2504473,108850.0,108840.0,0.37840397]
[1748402387696,0.2504473,108850.0,108840.0,0.50000068]
[1748402387891,0.6112473,108850.0,108840.0,0.50000068]
[1748402389501,0.61572939,108850.0,108840.0,0.55000068]
[1748402390101,0.61572939,108850.0,108840.0,0.59110053]
[1748402390497,0.61572939,108850.0,108840.0,0.63526511]
[1748402392099,0.61572939,108850.0,108840.0,0.56576702]
[1748402392301,0.61572939,108850.0,108840.0,0.63538121]
[1748402392499,0.61572939,108850.0,108840.0,0.56576702]
[1748402392699,0.61572939,108850.0,108840.0,0.63538221]
[1748402393014,0.61572939,108850.0,108840.0,0.63538298]
[1748402393204,0.61572939,108850.0,108840.0,0.56576702]
[1748402394712,0.61572939,108850.0,108840.0,0.98641403]
[1748402396300,0.61572939,108850.0,108840.0,0.18818395]
[1748402396301,0.7373261,108850.0,108840.0,0.18818395]
[1748402396500,0.7373261,108850.0,108840.0,0.1470841]
[1748402396702,0.1836665,108840.0,108830.0,0.13844212]
[1748402396913,1.12986321,108840.0,108830.0,0.19025817]
[1748402397106,0.75986321,108840.0,108830.0,0.19025817]
[1748402397312,0.6382665,108840.0,108830.0,0.37394157]
[1748402397608,0.6382665,108840.0,108830.0,0.59262238]
[1748402397810,0.6383865,108840.0,108830.0,0.59262238]
[1748402399198,0.6383865,108840.0,108830.0,0.52293996]
[1748402399608,0.6393865,108840.0,108830.0,0.52293996]
[1748402399807,0.6413865,108840.0,108830.0,0.52293996]
[1748402400304,0.6412665,108840.0,108830.0,0.52293996]
[1748402400706,0.6413865,108840.0,108830.0,0.52293996]
[1748402401419,0.6413865,108840.0,108830.0,0.40134325]
[1748402403527,0.6504643,108840.0,108830.0,0.40134325]
[1748402403708,0.77206101,108840.0,108830.0,0.40134325]
[1748402404722,0.77206101,108840.0,108830.0,0.21765985]
[1748402405016,0.77206101,108840.0,108830.0,0.40134295]
[1748402405608,0.7765431,108840.0,108830.0,0.40134295]
[1748402407006,2.04066381,108840.0,108830.0,0.02740168]
[1748402407207,0.1837,108820.0,108810.0,0.11085752]
[1748402407416,1.02689671,108820.0,108810.0,0.42428003]
[1748402407633,1.02689671,108820.0,108810.0,0.38]
[1748402407634,1.12209671,108820.0,108810.0,0.38]
[1748402407924,1.12209671,108820.0,108810.0,0.38012]
[1748402408505,1.12209671,108820.0,108810.0,0.38112]
[1748402410204,1.0005,108820.0,108810.0,0.5668344]
[1748402410918,1.0005,108820.0,108810.0,0.38312]
[1748402411810,1.0005,108820.0,108810.0,0.41592]
[1748402413905,1.0005,108820.0,108810.0,0.5996346]
[1748402416715,1.0005,108820.0,108810.0,0.41592]
[1748402416921,1.0005,108820.0,108810.0,0.3996346]
[1748402417512,1.0005,108820.0,108810.0,0.4300346]
[1748402418310,1.0005,108820.0,108810.0,0.55163131]
[1748402418505,0.9704,108820.0,108810.0,0.75243131]
[1748402419111,0.97052,108820.0,108810.0,0.75243131]
[1748402419524,0.97052,108820.0,108810.0,0.53243131]
[1748402420014,0.97052,108820.0,108810.0,0.6021919]
[1748402420219,0.97052,108820.0,108810.0,0.57668348]
[1748402420417,0.97052,108820.0,108810.0,0.53243131]
[1748402420723,0.97052,108820.0,108810.0,0.60214962]
[1748402420907,0.97500209,108820.0,108810.0,0.60214962]
[1748402423032,0.97500209,108820.0,108810.0,0.64324947]
[1748402426124,0.97500209,108820.0,108810.0,0.61786377]
[1748402428622,0.97500209,108820.0,108810.0,0.61787248]
[1748402430821,0.97500209,108820.0,108810.0,0.35389656]
[1748402431118,0.97500209,108820.0,108810.0,0.53761116]
[1748402431923,0.97500209,108820.0,108810.0,0.58196907]
[1748402433025,0.97500209,108820.0,108810.0,0.53761116]
[1748402433227,1.00810209,108820.0,108810.0,0.53761116]
[1748402433620,1.00810209,108820.0,108810.0,0.95829116]
[1748402433821,1.00810209,108820.0,108810.0,0.92749116]
[1748402434024,1.00810209,108820.0,108810.0,0.94146296]
[1748402434421,1.00810209,108820.0,108810.0,0.89709116]
[1748402435522,1.00810209,108820.0,108810.0,0.85599131]
[1748402435924,1.00810209,108820.0,108810.0,0.91084451]
[1748402437929,0.28650209,108820.0,108810.0,0.91084451]
[1748402438129,0.64730209,108820.0,108810.0,0.91084451]
[1748402439130,0.64730209,108820.0,108810.0,1.08844822]
[1748402439330,0.64730209,108820.0,108810.0,1.18164822]
[1748402443039,0.46360209,108820.0,108810.0,1.37164822]
[1748402443837,0.10280209,108820.0,108810.0,1.37164822]
[1748402444231,0.10280209,108820.0,108810.0,1.72087658]
[1748402444459,0.03638209,108820.0,108810.0,1.79928239]
[1748402444754,0.00012009,108820.0,108810.0,1.92337885]
[1748402444939,9e-08,108820.0,108810.0,1.8544845]
[1748402445138,9e-08,108820.0,108810.0,1.80289488]
[1748402445339,0.00012009,108820.0,108810.0,1.87184336]
[1748402446135,0.00012009,108820.0,108810.0,1.79019947]
[1748402446327,0.00012009,108820.0,108810.0,1.72125099]
[1748402446526,0.00012009,108820.0,108810.0,1.72116799]
[1748402450246,0.00012009,108820.0,108810.0,1.67681563]
[1748402450636,0.00012009,108820.0,108810.0,1.67881563]
[1748402450843,0.00012009,108820.0,108810.0,1.68181563]
[1748402452441,0.00012009,108820.0,108810.0,1.26113563]
[1748402452748,0.00012009,108820.0,108810.0,1.68173563]
[1748402453050,0.00012009,108820.0,108810.0,1.72608799]
[1748402453643,0.03102009,108820.0,108810.0,1.72608799]
[1748402456150,0.03102009,108820.0,108810.0,1.79503647]
[1748402456743,0.03102009,108820.0,108810.0,1.92817553]
[1748402459545,0.03102009,108820.0,108810.0,1.79503647]
[1748402459745,0.03102009,108820.0,108810.0,1.72605058]
[1748402460855,0.03102009,108820.0,108810.0,1.06225716]
[1748402461155,0.06372009,108820.0,108810.0,1.72597058]
[1748402461343,0.06372009,108820.0,108810.0,1.78104353]
[1748402462152,0.06372009,108820.0,108810.0,1.78115675]
[1748402462551,0.06372009,108820.0,108810.0,1.77815675]
[1748402463459,0.06372009,108820.0,108810.0,1.77615675]
[1748402464258,0.06372009,108820.0,108810.0,1.7210838]
[1748402465461,0.03033817,108830.0,108820.0,0.1836977]
[1748402465653,0.03033817,108830.0,108820.0,1.29723792]
[1748402466048,0.03045817,108830.0,108820.0,1.29723792]
[1748402466581,0.0323,108840.0,108830.0,0.1836808]
[1748402466759,0.0323,108840.0,108830.0,1.84478877]
[1748402466760,0.0308,108840.0,108830.0,1.84478877]
[1748402467059,0.0629,108850.0,108840.0,0.1836639]
[1748402467260,0.0629,108850.0,108840.0,1.55825025]
[1748402467956,0.0072272,108850.0,108840.0,1.55825025]
[1748402468155,0.00113817,108860.0,108850.0,0.1836471]
[1748402468460,0.00113817,108860.0,108850.0,1.66774219]
[1748402468651,0.03193817,108860.0,108850.0,1.58634233]
[1748402469259,0.03193817,108860.0,108850.0,1.53129566]
[1748402469449,0.03205817,108860.0,108850.0,1.58631614]
[1748402470363,0.03193817,108860.0,108850.0,1.58631614]
[1748402470547,0.03205817,108860.0,108850.0,1.58631614]
[1748402470855,0.00125817,108860.0,108850.0,1.58631614]
[1748402471862,0.00125817,108860.0,108850.0,1.58831614]
[1748402472170,0.00125817,108860.0,108850.0,1.59024289]
[1748402473761,0.00125817,108860.0,108850.0,1.54604429]
[1748402474161,0.00125817,108860.0,108850.0,1.59024289]
[1748402474669,0.00125817,108860.0,108850.0,1.54604429]
[1748402475754,0.03395817,108860.0,108850.0,1.54604429]
[1748402476767,0.0633,108870.0,108860.0,0.1836303]
[1748402476979,0.0029,108880.0,108870.0,0.1836134]
[1748402477171,0.0029,108880.0,108870.0,1.20680542]
[1748402477454,0.0029,108880.0,108870.0,1.26172319]
[1748402477650,0.00302,108880.0,108870.0,1.26172319]
[1748402477956,0.00302,108880.0,108870.0,1.14012648]
[1748402478155,0.00402,108880.0,108870.0,1.14012648]
[1748402478854,0.00502,108880.0,108870.0,1.14012648]
[1748402479258,0.00502,108880.0,108870.0,1.151706]
[1748402479767,0.00402,108880.0,108870.0,0.96056232]
[1748402479957,0.06802,108880.0,108870.0,1.08215903]
[1748402480157,0.09902,108880.0,108870.0,1.08215903]
[1748402483984,0.2826165,108880.0,108870.0,1.11776232]
[1748402484181,0.2826165,108880.0,108870.0,0.35875119]
[1748402484386,0.2826165,108880.0,108870.0,0.26103119]
[1748402484565,0.2826165,108880.0,108870.0,0.35875119]
[1748402484774,0.2826165,108880.0,108870.0,0.26103119]
[1748402484959,0.2826165,108880.0,108870.0,0.35875119]
[1748402485165,0.2856165,108880.0,108870.0,0.35875119]
[1748402485470,0.2856165,108880.0,108870.0,0.42829816]
[1748402485669,0.2856165,108880.0,108870.0,0.54989487]
[1748402485867,0.2856165,108880.0,108870.0,0.35875119]
[1748402486068,0.2856165,108880.0,108870.0,0.4803479]
[1748402486273,0.2886165,108880.0,108870.0,0.4803479]
[1748402486462,0.2886165,108880.0,108870.0,0.5112479]
[1748402486657,0.6494165,108880.0,108870.0,0.5112479]
[1748402487065,0.2886165,108880.0,108870.0,0.4803479]
[1748402487972,0.2886165,108880.0,108870.0,0.5121479]
[1748402489472,0.2886165,108880.0,108870.0,0.35875119]
[1748402489671,0.2886165,108880.0,108870.0,0.97017487]
[1748402490068,0.2886165,108880.0,108870.0,1.00197487]
[1748402490372,0.6494165,108880.0,108870.0,1.00197487]
[1748402491372,0.2886165,108880.0,108870.0,1.00197487]
[1748402491675,0.2886165,108880.0,108870.0,1.12024861]
[1748402491873,0.2886165,108880.0,108870.0,0.9986519]
[1748402492077,0.2886165,108880.0,108870.0,1.1202502]
[1748402492575,0.2886165,108880.0,108870.0,1.05070323]
[1748402493075,0.2886165,108880.0,108870.0,0.53270323]
[1748402493275,0.2886165,108880.0,108870.0,1.05062323]
[1748402494164,0.2886165,108880.0,108870.0,1.12040092]
[1748402494565,0.2886165,108880.0,108870.0,0.16717533]
[1748402494785,1.21286121,108880.0,108870.0,0.18283095]
[1748402494986,1.4673433,108880.0,108870.0,0.06983628]
[1748402495184,0.1836133,108870.0,108860.0,0.09891282]
[1748402495378,1.03881001,108870.0,108860.0,0.08905523]
[1748402495589,1.03881001,108870.0,108860.0,0.15892186]
[1748402495781,1.13066602,108870.0,108860.0,0.15892186]
[1748402495968,1.13066602,108870.0,108860.0,0.34255206]
[1748402496164,1.13066602,108870.0,108860.0,0.15892186]
[1748402496476,1.13166602,108870.0,108860.0,0.08905523]
[1748402496683,1.13166602,108870.0,108860.0,0.02905523]
[1748402497373,1.13466602,108870.0,108860.0,0.02905523]
[1748402497678,1.13566602,108870.0,108860.0,0.02905523]
[1748402498178,1.13466602,108870.0,108860.0,0.02905523]
[1748402498379,1.13866602,108870.0,108860.0,0.02905523]
[1748402499987,1.13866602,108870.0,108860.0,0.00151608]
[1748402505686,1.13866602,108870.0,108860.0,0.03151608]
[1748402506186,0.87866602,108870.0,108860.0,0.03151608]
[1748402506392,0.70706931,108870.0,108860.0,0.21514638]
[1748402506575,0.70706931,108870.0,108860.0,0.24684638]
[1748402506972,0.75718931,108870.0,108860.0,0.24684638]
[1748402507488,0.70718931,108870.0,108860.0,0.24684638]
[1748402507785,0.86878602,108870.0,108860.0,0.24684638]
[1748402507989,0.86878602,108870.0,108860.0,0.06321608]
[1748402508289,0.82878602,108870.0,108860.0,0.06321608]
[1748402508584,1.16878602,108870.0,108860.0,0.06321608]
[1748402510491,1.07693001,108870.0,108860.0,0.03151608]
[1748402510787,1.16878602,108870.0,108860.0,0.03151608]
[1748402511182,1.17326811,108870.0,108860.0,0.03151608]
[1748402511583,1.0814121,108870.0,108860.0,0.03151608]
[1748402517285,1.0814121,108870.0,108860.0,0.00151608]
[1748402517484,1.12431632,108870.0,108860.0,0.00151608]
[1748402517884,1.12431632,108870.0,108860.0,0.03181608]
[1748402518588,1.24591303,108870.0,108860.0,0.00776908]
[1748402518796,1.24591303,108870.0,108850.0,0.0307]
[1748402518797,0.1836303,108860.0,108850.0,0.0307]
[1748402518993,1.14232701,108860.0,108850.0,0.0307]
[1748402520292,1.14532701,108860.0,108850.0,0.0307]
[1748402520509,1.14532701,108860.0,108840.0,0.81704401]
[1748402520510,0.1836472,108850.0,108840.0,0.10144624]
[1748402520756,1.09974391,108850.0,108840.0,0.05837526]